[Event "*** Titled Tuesday Blitz"]
[Site "Chess.com"]
[Date "2021.03.30"]
[Round "5"]
[White "TigrVShlyape"]
[Black "horripile"]
[Result "1-0"]
[WhiteElo "2801"]
[BlackElo "2600"]
[TimeControl "180+1"]
[EndTime "10:54:52 PDT"]
[Termination "TigrVShlyape won by resignation"]

1. e4 {[%clk 0:03:00.9]} 1... c5 {[%clk 0:02:58.8]} 2. Nf3 {[%clk 0:03:00.6]}
2... Nc6 {[%clk 0:02:58.9]} 3. Nc3 {[%clk 0:02:59.7]} 3... e6 {[%clk 0:02:54.5]}
4. Bb5 {[%clk 0:02:59.3]} 4... Nge7 {[%clk 0:02:51.8]} 5. O-O {[%clk 0:02:58.4]}
5... Nd4 {[%clk 0:02:39.8]} 6. Nxd4 {[%clk 0:02:56.2]} 6... cxd4 {[%clk
0:02:36.5]} 7. Ne2 {[%clk 0:02:56.6]} 7... a6 {[%clk 0:02:37]} 8. Bd3 {[%clk
0:02:48.6]} 8... Nc6 {[%clk 0:02:36.1]} 9. c3 {[%clk 0:02:46.9]} 9... Bc5 {[%clk
0:02:33.6]} 10. b4 {[%clk 0:02:44.6]} 10... Ba7 {[%clk 0:02:33.5]} 11. Bb2
{[%clk 0:02:31.7]} 11... O-O {[%clk 0:02:25.2]} 12. a4 {[%clk 0:02:28.1]} 12...
Ne5 {[%clk 0:02:16.4]} 13. Bb1 {[%clk 0:02:21.5]} 13... Nc4 {[%clk 0:02:15.1]}
14. Bc1 {[%clk 0:02:10.5]} 14... d5 {[%clk 0:02:00.2]} 15. d3 {[%clk 0:01:58]}
15... Ne5 {[%clk 0:01:50.5]} 16. Nxd4 {[%clk 0:01:57.6]} 16... dxe4 {[%clk
0:01:27.9]} 17. dxe4 {[%clk 0:01:56.8]} 17... Bd7 {[%clk 0:01:27.7]} 18. Bf4
{[%clk 0:01:42.4]} 18... Nc4 {[%clk 0:01:27.2]} 19. Bg3 {[%clk 0:01:30.2]} 19...
Rc8 {[%clk 0:01:22.2]} 20. e5 {[%clk 0:01:18.9]} 20... Nb6 {[%clk 0:01:08.9]}
21. Qd3 {[%clk 0:01:07.5]} 21... g6 {[%clk 0:01:06.9]} 22. b5 {[%clk 0:01:07.7]}
22... Nd5 {[%clk 0:00:40.8]} 23. Ne2 {[%clk 0:00:57.1]} 23... axb5 {[%clk
0:00:29.8]} 24. axb5 {[%clk 0:00:55.9]} 24... Bc5 {[%clk 0:00:30.3]} 25. c4
{[%clk 0:00:46.2]} 25... Nb6 {[%clk 0:00:29.3]} 26. Ba2 {[%clk 0:00:37.8]} 26...
Ra8 {[%clk 0:00:29.7]} 27. Bb3 {[%clk 0:00:36.7]} 27... Qc7 {[%clk 0:00:22.8]}
28. Nc3 {[%clk 0:00:34.9]} 28... Rxa1 {[%clk 0:00:19.3]} 29. Rxa1 {[%clk
0:00:34.2]} 29... Ra8 {[%clk 0:00:19.5]} 30. Rxa8+ {[%clk 0:00:32]} 30... Nxa8
{[%clk 0:00:20.4]} 31. Ne4 {[%clk 0:00:30.7]} 1-0

[Event "*** Titled Tuesday Blitz"]
[Site "Chess.com"]
[Date "2021.03.30"]
[Round "5"]
[White "Rodalquilar"]
[Black "gaby_przz"]
[Result "1-0"]
[WhiteElo "2649"]
[BlackElo "2461"]
[TimeControl "180+1"]
[EndTime "10:54:52 PDT"]
[Termination "Rodalquilar won on time"]

1. d4 {[%clk 0:03:00.9]} 1... Nf6 {[%clk 0:02:51.8]} 2. Bf4 {[%clk 0:03:00.7]}
2... g6 {[%clk 0:02:49.1]} 3. e3 {[%clk 0:03:01.1]} 3... Bg7 {[%clk 0:02:49.4]}
4. Nf3 {[%clk 0:03:01.6]} 4... O-O {[%clk 0:02:50]} 5. Be2 {[%clk 0:03:02.1]}
5... d5 {[%clk 0:02:49.6]} 6. O-O {[%clk 0:03:02.2]} 6... c5 {[%clk 0:02:50]} 7.
c3 {[%clk 0:03:02.5]} 7... Nc6 {[%clk 0:02:45.8]} 8. Nbd2 {[%clk 0:03:02.7]}
8... Nd7 {[%clk 0:02:43.8]} 9. Qb3 {[%clk 0:02:58.3]} 9... c4 {[%clk 0:02:20.1]}
10. Qb5 {[%clk 0:02:24.3]} 10... Nb6 {[%clk 0:01:49.4]} 11. b3 {[%clk
0:02:19.9]} 11... Bd7 {[%clk 0:01:44.9]} 12. Qc5 {[%clk 0:02:14]} 12... Rc8
{[%clk 0:01:44.6]} 13. Qa3 {[%clk 0:02:12.5]} 13... cxb3 {[%clk 0:01:13.9]} 14.
axb3 {[%clk 0:02:13.4]} 14... Bf5 {[%clk 0:01:05.5]} 15. h3 {[%clk 0:01:55.5]}
15... f6 {[%clk 0:00:58.9]} 16. c4 {[%clk 0:01:16.8]} 16... g5 {[%clk 0:00:30]}
17. Bh2 {[%clk 0:01:15.1]} 17... Be6 {[%clk 0:00:18]} 18. c5 {[%clk 0:00:57]}
18... Nd7 {[%clk 0:00:13.4]} 19. b4 {[%clk 0:00:57.5]} 19... a6 {[%clk
0:00:13.3]} 20. b5 {[%clk 0:00:58]} 20... axb5 {[%clk 0:00:12]} 21. Bxb5 {[%clk
0:00:58.9]} 21... Ra8 {[%clk 0:00:12.3]} 22. Qb2 {[%clk 0:00:53.6]} 22... Bf5
{[%clk 0:00:10.8]} 23. Rxa8 {[%clk 0:00:51]} 23... Qxa8 {[%clk 0:00:08.8]} 24.
Ra1 {[%clk 0:00:51.9]} 24... Qc8 {[%clk 0:00:05.5]} 25. Qb3 {[%clk 0:00:44.7]}
25... e6 {[%clk 0:00:02.5]} 26. e4 {[%clk 0:00:45.3]} 26... dxe4 {[%clk
0:00:02.8]} 27. Nxe4 {[%clk 0:00:45.8]} 27... Kh8 {[%clk 0:00:01.9]} 28. Nd6
{[%clk 0:00:45.7]} 28... Qd8 {[%clk 0:00:01.3]} 29. Nxb7 {[%clk 0:00:45]} 29...
Qc8 {[%clk 0:00:01.5]} 30. Nd6 {[%clk 0:00:45.1]} 30... Qc7 {[%clk 0:00:01.3]}
31. Nxf5 {[%clk 0:00:45.3]} 1-0

[Event "*** Titled Tuesday Blitz"]
[Site "Chess.com"]
[Date "2021.03.30"]
[Round "5"]
[White "ChristopherYoo"]
[Black "KNCP_719"]
[Result "1-0"]
[WhiteElo "2922"]
[BlackElo "2628"]
[TimeControl "180+1"]
[EndTime "10:54:54 PDT"]
[Termination "ChristopherYoo won on time"]

1. e4 {[%clk 0:03:00.9]} 1... Nf6 {[%clk 0:02:58.9]} 2. Nc3 {[%clk 0:02:50.8]}
2... d5 {[%clk 0:02:59]} 3. exd5 {[%clk 0:02:46.9]} 3... Nxd5 {[%clk 0:02:58.8]}
4. Bc4 {[%clk 0:02:42.7]} 4... Nb6 {[%clk 0:02:58.6]} 5. Be2 {[%clk 0:02:40.4]}
5... Nc6 {[%clk 0:02:52.2]} 6. Nf3 {[%clk 0:02:40.2]} 6... Bg4 {[%clk 0:02:46]}
7. h3 {[%clk 0:02:39.8]} 7... Bh5 {[%clk 0:02:43.1]} 8. O-O {[%clk 0:02:39.8]}
8... e6 {[%clk 0:02:38.1]} 9. d3 {[%clk 0:02:30.7]} 9... Bd6 {[%clk 0:02:34.8]}
10. Be3 {[%clk 0:02:30.2]} 10... O-O {[%clk 0:02:34]} 11. Nd2 {[%clk 0:02:28.7]}
11... Bxe2 {[%clk 0:02:08.8]} 12. Qxe2 {[%clk 0:02:29.6]} 12... Nd5 {[%clk
0:02:01.2]} 13. Nxd5 {[%clk 0:02:28.4]} 13... exd5 {[%clk 0:02:01.4]} 14. d4
{[%clk 0:02:29]} 14... Qf6 {[%clk 0:01:57.9]} 15. c3 {[%clk 0:02:28]} 15... Ne7
{[%clk 0:01:57.9]} 16. Rfe1 {[%clk 0:01:52.3]} 16... Nf5 {[%clk 0:01:49.6]} 17.
Qd3 {[%clk 0:01:41.5]} 17... Nh4 {[%clk 0:01:39]} 18. g3 {[%clk 0:01:38]} 18...
Nf5 {[%clk 0:00:57.2]} 19. Nf1 {[%clk 0:01:25.8]} 19... c6 {[%clk 0:00:52.1]}
20. Bd2 {[%clk 0:01:25.4]} 20... Rae8 {[%clk 0:00:49.3]} 21. Rxe8 {[%clk
0:01:22.3]} 21... Rxe8 {[%clk 0:00:50.2]} 22. Re1 {[%clk 0:01:22.3]} 22... Rxe1
{[%clk 0:00:48.5]} 23. Bxe1 {[%clk 0:01:23.2]} 23... h5 {[%clk 0:00:47.6]} 24.
Bd2 {[%clk 0:01:22.9]} 24... Ne7 {[%clk 0:00:42.3]} 25. h4 {[%clk 0:01:22.2]}
25... Qe6 {[%clk 0:00:37.8]} 26. Ne3 {[%clk 0:01:21.2]} 26... g6 {[%clk
0:00:29.5]} 27. Ng2 {[%clk 0:01:16.7]} 27... Nf5 {[%clk 0:00:20.7]} 28. Bf4
{[%clk 0:01:16]} 28... Bxf4 {[%clk 0:00:18.7]} 29. Nxf4 {[%clk 0:01:15.4]} 29...
Qe1+ {[%clk 0:00:19.2]} 30. Kg2 {[%clk 0:01:15.2]} 30... Kg7 {[%clk 0:00:18.5]}
31. Nxh5+ {[%clk 0:01:14.1]} 31... Kf8 {[%clk 0:00:09.9]} 32. Nf4 {[%clk
0:01:10.1]} 32... Qc1 {[%clk 0:00:10.2]} 33. h5 {[%clk 0:01:09.3]} 33... Qxb2
{[%clk 0:00:05.6]} 34. hxg6 {[%clk 0:01:08.8]} 34... Ne7 {[%clk 0:00:02.9]} 35.
gxf7 {[%clk 0:01:08.7]} 35... Kxf7 {[%clk 0:00:03.8]} 36. Qh7+ {[%clk
0:00:55.5]} 36... Ke8 {[%clk 0:00:04.3]} 37. Nd3 {[%clk 0:00:54.2]} 37... Qxc3
{[%clk 0:00:03.6]} 38. Ne5 {[%clk 0:00:54.4]} 38... Kd8 {[%clk 0:00:01.3]} 39.
Qf7 {[%clk 0:00:54.1]} 1-0

[Event "*** Titled Tuesday Blitz"]
[Site "Chess.com"]
[Date "2021.03.30"]
[Round "5"]
[White "anon481216"]
[Black "Zkid"]
[Result "0-1"]
[WhiteElo "2510"]
[BlackElo "2836"]
[TimeControl "180+1"]
[EndTime "10:54:58 PDT"]
[Termination "Zkid won by resignation"]

1. d4 {[%clk 0:03:00.9]} 1... d5 {[%clk 0:02:57.2]} 2. c4 {[%clk 0:03:00.6]}
2... dxc4 {[%clk 0:02:57.4]} 3. e4 {[%clk 0:03:00]} 3... Nf6 {[%clk 0:02:56.5]}
4. e5 {[%clk 0:02:59.5]} 4... Nd5 {[%clk 0:02:57.1]} 5. Bxc4 {[%clk 0:02:59.9]}
5... Nc6 {[%clk 0:02:57.8]} 6. Ne2 {[%clk 0:02:44.8]} 6... Bf5 {[%clk
0:02:56.7]} 7. O-O {[%clk 0:02:43.2]} 7... e6 {[%clk 0:02:54.9]} 8. Nbc3 {[%clk
0:02:42.7]} 8... Nb6 {[%clk 0:02:54.9]} 9. Bb3 {[%clk 0:02:36.8]} 9... Qd7
{[%clk 0:02:54.8]} 10. Be3 {[%clk 0:02:27.3]} 10... O-O-O {[%clk 0:02:53.9]} 11.
Rc1 {[%clk 0:02:26.4]} 11... Kb8 {[%clk 0:02:52.8]} 12. f3 {[%clk 0:02:14.7]}
12... f6 {[%clk 0:02:37.8]} 13. exf6 {[%clk 0:02:12.9]} 13... gxf6 {[%clk
0:02:38.7]} 14. Ne4 {[%clk 0:02:13]} 14... Nd5 {[%clk 0:02:33.4]} 15. Bf2 {[%clk
0:02:03.3]} 15... Be7 {[%clk 0:02:30.2]} 16. Nc5 {[%clk 0:02:02.3]} 16... Bxc5
{[%clk 0:02:27.2]} 17. dxc5 {[%clk 0:02:01.3]} 17... Rhg8 {[%clk 0:02:24.8]} 18.
Kh1 {[%clk 0:01:57.7]} 18... Qg7 {[%clk 0:02:20.4]} 19. g4 {[%clk 0:01:46.2]}
19... Ndb4 {[%clk 0:02:03.9]} 20. Nd4 {[%clk 0:01:10.9]} 20... Nxd4 {[%clk
0:01:58.1]} 21. Bxd4 {[%clk 0:01:10.5]} 21... Bd3 {[%clk 0:01:43.1]} 22. Bc3
{[%clk 0:00:50.2]} 22... Bxf1 {[%clk 0:01:38.6]} 23. Qxf1 {[%clk 0:00:49.9]}
23... Nd5 {[%clk 0:01:33.4]} 24. c6 {[%clk 0:00:48.4]} 24... bxc6 {[%clk
0:01:25.1]} 25. Bd4 {[%clk 0:00:46.2]} 25... Nb6 {[%clk 0:01:20.3]} 26. Bf2
{[%clk 0:00:30]} 26... Rge8 {[%clk 0:01:10.2]} 27. Rxc6 {[%clk 0:00:27.9]} 27...
Qd7 {[%clk 0:01:07.9]} 28. Rc1 {[%clk 0:00:23.5]} 28... Qd3 {[%clk 0:01:05.3]}
29. Qg2 {[%clk 0:00:18.7]} 29... e5 {[%clk 0:01:03.5]} 30. Bc2 {[%clk
0:00:13.6]} 30... Qd2 {[%clk 0:01:00.6]} 31. Qg1 {[%clk 0:00:13.2]} 31... Rd6
{[%clk 0:00:55.5]} 32. Be4 {[%clk 0:00:12.6]} 32... Red8 {[%clk 0:00:55.3]} 33.
Kg2 {[%clk 0:00:09.2]} 33... Qxb2 {[%clk 0:00:53.4]} 34. Qf1 {[%clk 0:00:08.6]}
34... Rd2 {[%clk 0:00:50.7]} 35. Kg3 {[%clk 0:00:03.1]} 35... Rxf2 {[%clk
0:00:48.5]} 36. Qa6 {[%clk 0:00:02.4]} 36... Rg2+ {[%clk 0:00:47.8]} 37. Kh3
{[%clk 0:00:02.6]} 37... Rxh2+ {[%clk 0:00:48.2]} 0-1

[Event "*** Titled Tuesday Blitz"]
[Site "Chess.com"]
[Date "2021.03.30"]
[Round "5"]
[White "Mr_Sinigami"]
[Black "Soltan49"]
[Result "1-0"]
[WhiteElo "2540"]
[BlackElo "2238"]
[TimeControl "180+1"]
[EndTime "10:54:58 PDT"]
[Termination "Mr_Sinigami won by resignation"]

1. d4 {[%clk 0:03:00.9]} 1... Nf6 {[%clk 0:02:59]} 2. Nf3 {[%clk 0:03:01]} 2...
g6 {[%clk 0:02:57.5]} 3. Bf4 {[%clk 0:03:01.5]} 3... d5 {[%clk 0:02:57.4]} 4. e3
{[%clk 0:03:01.7]} 4... Bg7 {[%clk 0:02:57.9]} 5. h3 {[%clk 0:03:00.6]} 5... O-O
{[%clk 0:02:57.7]} 6. Be2 {[%clk 0:03:00.6]} 6... c5 {[%clk 0:02:56.8]} 7. c3
{[%clk 0:03:00.4]} 7... Nc6 {[%clk 0:02:57.4]} 8. O-O {[%clk 0:03:00]} 8... Qb6
{[%clk 0:02:49.5]} 9. Qb3 {[%clk 0:02:58.3]} 9... c4 {[%clk 0:02:50]} 10. Qa3
{[%clk 0:02:57.6]} 10... Qd8 {[%clk 0:02:43.7]} 11. Nbd2 {[%clk 0:02:47.1]}
11... b5 {[%clk 0:02:43.6]} 12. b3 {[%clk 0:02:43.5]} 12... Bd7 {[%clk
0:02:34.7]} 13. bxc4 {[%clk 0:02:37.8]} 13... bxc4 {[%clk 0:02:34.1]} 14. Rab1
{[%clk 0:02:36.6]} 14... Re8 {[%clk 0:02:28.4]} 15. Ne5 {[%clk 0:02:33.8]} 15...
Nh5 {[%clk 0:02:26.2]} 16. Nxc6 {[%clk 0:02:23.6]} 16... Bxc6 {[%clk 0:02:16.9]}
17. Bxh5 {[%clk 0:02:22.8]} 17... gxh5 {[%clk 0:02:17.8]} 18. Nf3 {[%clk
0:02:21.2]} 18... f6 {[%clk 0:02:09.7]} 19. Bg3 {[%clk 0:01:59.4]} 19... Qd7
{[%clk 0:02:04.9]} 20. Rb2 {[%clk 0:01:54.3]} 20... e5 {[%clk 0:02:03.6]} 21.
Rfb1 {[%clk 0:01:51]} 21... Re6 {[%clk 0:01:10.9]} 22. Rb8+ {[%clk 0:01:41.8]}
22... Rxb8 {[%clk 0:01:03.9]} 23. Rxb8+ {[%clk 0:01:39.7]} 23... Re8 {[%clk
0:01:04.5]} 24. Rxe8+ {[%clk 0:01:38.6]} 24... Qxe8 {[%clk 0:01:04.4]} 25. Qxa7
{[%clk 0:01:38.5]} 25... e4 {[%clk 0:00:27.8]} 26. Nh4 {[%clk 0:01:34.9]} 26...
Qa8 {[%clk 0:00:24]} 27. Qc7 {[%clk 0:01:27.5]} 27... Bf8 {[%clk 0:00:19.6]} 28.
Nf5 {[%clk 0:01:22.1]} 28... Be8 {[%clk 0:00:18.8]} 29. Bd6 {[%clk 0:01:15]}
29... Bg6 {[%clk 0:00:04.6]} 30. Bxf8 {[%clk 0:01:13]} 30... Qxf8 {[%clk
0:00:05.5]} 31. Ne7+ {[%clk 0:01:09.9]} 31... Kh8 {[%clk 0:00:03.5]} 32. Nxd5
{[%clk 0:01:09.5]} 32... Kg8 {[%clk 0:00:01.6]} 33. a4 {[%clk 0:01:05.2]} 33...
Kh8 {[%clk 0:00:01.7]} 34. a5 {[%clk 0:01:04.8]} 34... Bf7 {[%clk 0:00:02.2]}
35. Nxf6 {[%clk 0:01:03.4]} 35... Qa8 {[%clk 0:00:02.1]} 36. Qxf7 {[%clk
0:01:02.3]} 1-0

[Event "*** Titled Tuesday Blitz"]
[Site "Chess.com"]
[Date "2021.03.30"]
[Round "5"]
[White "fabianvivasz"]
[Black "pastouche06"]
[Result "0-1"]
[WhiteElo "2395"]
[BlackElo "2548"]
[TimeControl "180+1"]
[EndTime "10:54:58 PDT"]
[Termination "pastouche06 won on time"]

1. e4 {[%clk 0:03:00.9]} 1... c6 {[%clk 0:03:00.1]} 2. d4 {[%clk 0:03:00]} 2...
d5 {[%clk 0:03:00.5]} 3. e5 {[%clk 0:02:59.9]} 3... Bf5 {[%clk 0:03:00]} 4. Nf3
{[%clk 0:02:58.2]} 4... e6 {[%clk 0:02:59]} 5. Be2 {[%clk 0:02:56.8]} 5... Ne7
{[%clk 0:02:58.2]} 6. O-O {[%clk 0:02:51.2]} 6... Ng6 {[%clk 0:02:57.4]} 7. Be3
{[%clk 0:02:44.4]} 7... Nd7 {[%clk 0:02:51.7]} 8. Nbd2 {[%clk 0:02:27.5]} 8...
f6 {[%clk 0:02:50.7]} 9. exf6 {[%clk 0:02:22.8]} 9... Qxf6 {[%clk 0:02:51.6]}
10. Nb3 {[%clk 0:02:05.4]} 10... Bd6 {[%clk 0:02:47.4]} 11. Qd2 {[%clk
0:01:49.1]} 11... O-O {[%clk 0:02:21.1]} 12. Rae1 {[%clk 0:01:37.7]} 12... e5
{[%clk 0:02:06.9]} 13. dxe5 {[%clk 0:01:25]} 13... Ndxe5 {[%clk 0:02:06]} 14.
Nxe5 {[%clk 0:01:06.1]} 14... Qxe5 {[%clk 0:02:01.4]} 15. f4 {[%clk 0:00:56.4]}
15... Qxb2 {[%clk 0:01:53.6]} 16. Bd3 {[%clk 0:00:40.8]} 16... Bxd3 {[%clk
0:01:49.3]} 17. Qxd3 {[%clk 0:00:41.7]} 17... Nxf4 {[%clk 0:01:39.4]} 18. Bxf4
{[%clk 0:00:16.5]} 18... Rxf4 {[%clk 0:01:40.3]} 19. Rxf4 {[%clk 0:00:13.2]}
19... Bxf4 {[%clk 0:01:41.2]} 20. Nd4 {[%clk 0:00:08.2]} 20... Qb6 {[%clk
0:01:24.6]} 21. Kh1 {[%clk 0:00:08.2]} 21... Bd6 {[%clk 0:00:51.5]} 22. Qe3
{[%clk 0:00:02.3]} 22... Qd8 {[%clk 0:00:38.1]} 23. Qe6+ {[%clk 0:00:02.2]}
23... Kh8 {[%clk 0:00:38.2]} 24. Nf5 {[%clk 0:00:02.6]} 24... Bf8 {[%clk
0:00:34]} 25. Re3 {[%clk 0:00:01.6]} 25... Qf6 {[%clk 0:00:30.8]} 26. Qd7 {[%clk
0:00:01.2]} 26... Qa1+ {[%clk 0:00:26.4]} 0-1

[Event "*** Titled Tuesday Blitz"]
[Site "Chess.com"]
[Date "2021.03.30"]
[Round "5"]
[White "dennisodessa"]
[Black "Mazanchenko_Dmitry"]
[Result "0-1"]
[WhiteElo "2326"]
[BlackElo "2219"]
[TimeControl "180+1"]
[EndTime "10:54:59 PDT"]
[Termination "Mazanchenko_Dmitry won by resignation"]

1. d4 {[%clk 0:03:00]} 1... g6 {[%clk 0:02:58.7]} 2. c4 {[%clk 0:03:00.3]} 2...
Bg7 {[%clk 0:02:56.5]} 3. Nc3 {[%clk 0:03:00]} 3... d6 {[%clk 0:02:56.8]} 4. e4
{[%clk 0:03:00.2]} 4... Nc6 {[%clk 0:02:56.2]} 5. Be3 {[%clk 0:02:59.9]} 5... e5
{[%clk 0:02:54.7]} 6. d5 {[%clk 0:03:00.3]} 6... Nd4 {[%clk 0:02:54.3]} 7. Nge2
{[%clk 0:03:00.9]} 7... Bg4 {[%clk 0:02:53.6]} 8. Qd2 {[%clk 0:02:54.4]} 8...
Bxe2 {[%clk 0:02:52.8]} 9. Nxe2 {[%clk 0:02:54.7]} 9... Nxe2 {[%clk 0:02:44.7]}
10. Bxe2 {[%clk 0:02:55.6]} 10... Ne7 {[%clk 0:02:40.9]} 11. h4 {[%clk
0:02:51.3]} 11... f5 {[%clk 0:02:40.1]} 12. exf5 {[%clk 0:02:43.8]} 12... Nxf5
{[%clk 0:02:36.9]} 13. Bg5 {[%clk 0:02:44.4]} 13... Bf6 {[%clk 0:02:35.1]} 14.
O-O-O {[%clk 0:02:43.9]} 14... Bxg5 {[%clk 0:02:28.8]} 15. hxg5 {[%clk
0:02:44.8]} 15... O-O {[%clk 0:02:25.4]} 16. Bg4 {[%clk 0:02:22]} 16... Nd4
{[%clk 0:02:21.5]} 17. Rh3 {[%clk 0:02:19.7]} 17... Qe7 {[%clk 0:02:07]} 18.
Rdh1 {[%clk 0:02:18.6]} 18... Rf7 {[%clk 0:02:07.3]} 19. f3 {[%clk 0:02:14.5]}
19... a6 {[%clk 0:02:06.4]} 20. Rh6 {[%clk 0:02:13.1]} 20... b5 {[%clk
0:02:01.5]} 21. Qd3 {[%clk 0:02:09.2]} 21... Qxg5+ {[%clk 0:01:58.1]} 22. Kb1
{[%clk 0:02:09.6]} 22... bxc4 {[%clk 0:01:39.1]} 23. Qxc4 {[%clk 0:02:10.5]}
23... Rb8 {[%clk 0:01:31.3]} 24. Be6 {[%clk 0:02:10.5]} 24... Nxe6 {[%clk
0:01:21.6]} 25. dxe6 {[%clk 0:01:08.6]} 25... Re7 {[%clk 0:01:01.7]} 26. Rxh7
{[%clk 0:00:28.1]} 26... Rxh7 {[%clk 0:00:52.6]} 27. Rxh7 {[%clk 0:00:27.5]}
27... Qd2 {[%clk 0:00:37.9]} 28. e7+ {[%clk 0:00:14.8]} 28... Kxh7 {[%clk
0:00:37.4]} 29. Qf7+ {[%clk 0:00:15.7]} 29... Kh6 {[%clk 0:00:37.3]} 30. Qf8+
{[%clk 0:00:16.1]} 30... Kg5 {[%clk 0:00:35.7]} 31. f4+ {[%clk 0:00:14.3]} 0-1

[Event "*** Titled Tuesday Blitz"]
[Site "Chess.com"]
[Date "2021.03.30"]
[Round "5"]
[White "MPGM"]
[Black "davigator"]
[Result "1-0"]
[WhiteElo "2581"]
[BlackElo "2428"]
[TimeControl "180+1"]
[EndTime "10:55:00 PDT"]
[Termination "MPGM won by checkmate"]

1. e4 {[%clk 0:03:00.9]} 1... c5 {[%clk 0:02:40.7]} 2. Nf3 {[%clk 0:02:56.8]}
2... Nc6 {[%clk 0:02:40.6]} 3. Bb5 {[%clk 0:02:54]} 3... g6 {[%clk 0:02:39.2]}
4. O-O {[%clk 0:02:50.5]} 4... Bg7 {[%clk 0:02:38.1]} 5. Re1 {[%clk 0:02:47.1]}
5... Nf6 {[%clk 0:02:37.1]} 6. c3 {[%clk 0:02:39.4]} 6... O-O {[%clk 0:02:36]}
7. d4 {[%clk 0:02:36.6]} 7... cxd4 {[%clk 0:02:36.3]} 8. cxd4 {[%clk 0:02:35.8]}
8... d5 {[%clk 0:02:36.7]} 9. e5 {[%clk 0:02:33.2]} 9... Ne4 {[%clk 0:02:36.6]}
10. h3 {[%clk 0:02:26]} 10... f6 {[%clk 0:02:35]} 11. Bxc6 {[%clk 0:02:21.6]}
11... bxc6 {[%clk 0:02:34.3]} 12. Nbd2 {[%clk 0:02:21]} 12... Bf5 {[%clk
0:02:31.8]} 13. Nf1 {[%clk 0:01:34.4]} 13... Qb6 {[%clk 0:02:06.6]} 14. exf6
{[%clk 0:01:27.6]} 14... Bxf6 {[%clk 0:02:01.2]} 15. Bh6 {[%clk 0:01:26.7]}
15... Rf7 {[%clk 0:01:57.8]} 16. Re2 {[%clk 0:01:02.2]} 16... Rd8 {[%clk
0:01:09.8]} 17. Ne3 {[%clk 0:00:59.7]} 17... Bc8 {[%clk 0:01:06]} 18. Rc1 {[%clk
0:00:49.9]} 18... Bb7 {[%clk 0:00:49.7]} 19. Ng4 {[%clk 0:00:46.1]} 19... Bg7
{[%clk 0:00:40.3]} 20. Bxg7 {[%clk 0:00:45.5]} 20... Kxg7 {[%clk 0:00:38.8]} 21.
Nge5 {[%clk 0:00:40.4]} 21... Rf6 {[%clk 0:00:38.5]} 22. Qc2 {[%clk 0:00:36.6]}
22... Rdd6 {[%clk 0:00:32.8]} 23. Ng4 {[%clk 0:00:33.2]} 23... Rf8 {[%clk
0:00:30.8]} 24. Rxe4 {[%clk 0:00:27.9]} 24... dxe4 {[%clk 0:00:30]} 25. Qxe4
{[%clk 0:00:28.8]} 25... Qd8 {[%clk 0:00:22]} 26. Re1 {[%clk 0:00:19.9]} 26...
Re8 {[%clk 0:00:17.4]} 27. Qe5+ {[%clk 0:00:19]} 27... Kf7 {[%clk 0:00:15.4]}
28. Ng5+ {[%clk 0:00:18.8]} 28... Kg8 {[%clk 0:00:14.5]} 29. Nh6+ {[%clk
0:00:19.1]} 29... Kf8 {[%clk 0:00:14.2]} 30. Qh8# {[%clk 0:00:19.8]} 1-0

[Event "*** Titled Tuesday Blitz"]
[Site "Chess.com"]
[Date "2021.03.30"]
[Round "5"]
[White "picturesquecheck"]
[Black "Nozdrachev_Leonid"]
[Result "0-1"]
[WhiteElo "2267"]
[BlackElo "2543"]
[TimeControl "180+1"]
[EndTime "10:55:02 PDT"]
[Termination "Nozdrachev_Leonid won on time"]

1. e4 {[%clk 0:03:00.9]} 1... d6 {[%clk 0:02:58.8]} 2. d4 {[%clk 0:02:59.6]}
2... Nf6 {[%clk 0:02:59.1]} 3. Nc3 {[%clk 0:02:58.7]} 3... e5 {[%clk 0:02:59.4]}
4. Nf3 {[%clk 0:02:55.2]} 4... Nbd7 {[%clk 0:02:58.5]} 5. Bc4 {[%clk 0:02:53.6]}
5... Be7 {[%clk 0:02:57.8]} 6. O-O {[%clk 0:02:47.3]} 6... O-O {[%clk
0:02:56.2]} 7. a4 {[%clk 0:02:47.2]} 7... c6 {[%clk 0:02:56]} 8. h3 {[%clk
0:02:47.1]} 8... Qc7 {[%clk 0:02:54.3]} 9. Bb3 {[%clk 0:02:43.6]} 9... h6 {[%clk
0:02:53.8]} 10. Re1 {[%clk 0:02:43.2]} 10... Re8 {[%clk 0:02:53.3]} 11. Be3
{[%clk 0:02:40.9]} 11... Bf8 {[%clk 0:02:51.9]} 12. a5 {[%clk 0:02:37.9]} 12...
exd4 {[%clk 0:02:51.1]} 13. Bxd4 {[%clk 0:02:38]} 13... g6 {[%clk 0:02:32.9]}
14. Qd2 {[%clk 0:02:25.7]} 14... Bg7 {[%clk 0:02:26.5]} 15. Nh2 {[%clk
0:01:19.6]} 15... Nf8 {[%clk 0:02:05.5]} 16. Be3 {[%clk 0:01:09.8]} 16... h5
{[%clk 0:02:01.1]} 17. Bf4 {[%clk 0:01:08.4]} 17... Rd8 {[%clk 0:01:53.5]} 18.
Qe2 {[%clk 0:01:04.2]} 18... Ne6 {[%clk 0:01:51.5]} 19. Bg3 {[%clk 0:01:02.9]}
19... Nd4 {[%clk 0:01:50.6]} 20. Qe3 {[%clk 0:01:01.2]} 20... Nxb3 {[%clk
0:01:49.2]} 21. cxb3 {[%clk 0:01:02.1]} 21... Be6 {[%clk 0:01:48.9]} 22. b4
{[%clk 0:01:02.5]} 22... Nd7 {[%clk 0:01:45.5]} 23. f4 {[%clk 0:00:54]} 23... c5
{[%clk 0:01:44.1]} 24. Nf3 {[%clk 0:00:37.3]} 24... cxb4 {[%clk 0:01:40.6]} 25.
Nb5 {[%clk 0:00:36.4]} 25... Qc2 {[%clk 0:01:39.6]} 26. Nbd4 {[%clk 0:00:33.3]}
26... Qxb2 {[%clk 0:01:38.9]} 27. Rab1 {[%clk 0:00:31.5]} 27... Qc3 {[%clk
0:01:38.4]} 28. Nxe6 {[%clk 0:00:25.4]} 28... Qxe3+ {[%clk 0:01:37]} 29. Rxe3
{[%clk 0:00:25.2]} 29... fxe6 {[%clk 0:01:37.9]} 30. Rxb4 {[%clk 0:00:24.8]}
30... Nc5 {[%clk 0:01:37.8]} 31. Kh2 {[%clk 0:00:21.4]} 31... Bf6 {[%clk
0:01:34.8]} 32. e5 {[%clk 0:00:20.9]} 32... dxe5 {[%clk 0:01:33.2]} 33. fxe5
{[%clk 0:00:21.4]} 33... Be7 {[%clk 0:01:32.2]} 34. Rb5 {[%clk 0:00:20.5]} 34...
Rd1 {[%clk 0:01:29.6]} 35. Rc3 {[%clk 0:00:19.7]} 35... b6 {[%clk 0:01:16.6]}
36. axb6 {[%clk 0:00:19.1]} 36... axb6 {[%clk 0:01:17.5]} 37. Rc4 {[%clk
0:00:16.8]} 37... Raa1 {[%clk 0:01:16.6]} 38. Bf4 {[%clk 0:00:14.2]} 38... h4
{[%clk 0:01:15.8]} 39. g4 {[%clk 0:00:10]} 39... Ra2+ {[%clk 0:01:12.3]} 40. Nd2
{[%clk 0:00:05.9]} 40... g5 {[%clk 0:01:08.9]} 41. Be3 {[%clk 0:00:05.3]} 41...
Re1 {[%clk 0:01:09.1]} 42. Rc3 {[%clk 0:00:01.8]} 42... Re2+ {[%clk 0:01:09.2]}
43. Kh1 {[%clk 0:00:01.1]} 43... Re1+ {[%clk 0:01:09.2]} 0-1